bitfinex/quotes_SOLUSD_20250204
["timestamp","ask_amount","ask_price","bid_price","bid_amount"]
[1738682044649,0.875235,212.27,212.23,37.47047791]
[1738682044850,0.063,212.28,212.15,20.50196]
[1738682045052,0.938235,212.28,212.2,37.47047791]
[1738682045252,0.938235,212.28,212.24,37.47047791]
[1738682045253,0.063,212.28,212.24,37.47047791]
[1738682045451,0.063,212.28,212.26,37.47047791]
[1738682045746,0.875235,212.45,212.29,20.0]
[1738682045956,0.875235,212.45,212.4,37.47047791]
[1738682046157,0.875235,212.45,212.38,37.47047791]
[1738682046371,0.875235,212.45,212.4,37.47047791]
[1738682046669,0.063,212.54,212.3,37.47047791]
[1738682046670,1.0,212.51,212.3,38.17681346]
[1738682046853,1.0,212.51,212.25,7.7764]
[1738682046854,1.0,212.37,212.14,16.4984]
[1738682047060,0.063,212.28,212.14,11.7846]
[1738682047267,0.063,212.28,212.11,4.7145]
[1738682047486,0.938235,212.28,212.11,0.70697629]
[1738682047772,0.063,212.28,212.21,37.47047791]
[1738682048082,0.063,212.28,212.23,37.47047791]
[1738682048474,0.063,212.28,212.21,37.47047791]
[1738682048649,37.47047791,212.26,212.16,37.47047791]
[1738682048850,20.0,212.22,212.13,37.47047791]
[1738682049055,37.47047791,212.19,212.11,37.47047791]
[1738682049276,0.875235,212.24,212.15,37.47047791]
[1738682049481,0.063,212.28,212.13,0.50196]
[1738682049780,0.063,212.28,212.21,0.50196]
[1738682049993,21.08216393,212.4,212.24,1.0]
[1738682050153,21.08216393,212.4,212.26,1.50196]
[1738682050347,0.875235,212.48,212.3,0.50196]
[1738682050573,37.47047791,212.51,212.41,37.47047791]
[1738682050890,37.47047791,212.51,212.31,1.70620117]
[1738682050891,37.47047791,212.53,212.45,37.47047791]
[1738682051058,5.643235,212.54,212.47,37.47047791]
[1738682051059,0.063,212.54,212.47,37.47047791]
[1738682051249,0.063,212.54,212.49,37.47047791]
[1738682051449,37.53347791,212.54,212.45,37.47047791]
[1738682051787,37.47047791,212.52,212.43,37.47047791]
[1738682051952,37.53347791,212.54,212.45,37.47047791]
[1738682052157,0.875235,212.51,212.43,37.47047791]
[1738682052477,37.47047791,212.48,212.39,37.47047791]
[1738682052781,37.47047791,212.48,212.36,4.7088]
[1738682052782,38.40871291,212.5,212.41,37.47047791]
[1738682052950,0.063,212.5,212.49,37.47047791]
[1738682053783,0.063,212.5,212.49,42.17657791]
[1738682054085,0.063,212.54,212.51,0.50196]
[1738682054293,1.0,212.78,212.57,0.50196]
[1738682054294,1.16748977,212.73,212.57,0.50196]
[1738682054450,1.16748977,212.73,212.68,37.47047791]
[1738682054649,37.53347791,212.76,212.58,1.70525389]
[1738682054650,37.47047791,212.71,212.64,37.47047791]
[1738682054953,0.063,212.76,212.7,37.47047791]
[1738682055559,0.063,212.76,212.66,4.7022]
[1738682055560,0.063,212.76,212.68,37.47047791]
[1738682055758,0.063,212.76,212.7,37.47047791]
[1738682055951,0.063,212.76,212.72,37.47047791]
[1738682056357,37.47047791,212.73,212.64,37.47047791]
[1738682056557,20.0,212.75,212.62,37.47047791]
[1738682056558,37.47047791,212.71,212.62,37.47047791]
[1738682056876,37.47047791,212.67,212.57,37.47047791]
[1738682057187,37.47047791,212.65,212.57,37.47047791]
[1738682057392,37.47047791,212.65,212.55,37.47047791]
[1738682057393,37.47047791,212.63,212.55,37.47047791]
[1738682057564,37.47047791,212.57,212.45,37.47047791]
[1738682057893,0.875235,212.62,212.47,37.47047791]
[1738682057894,37.47047791,212.56,212.47,37.47047791]
[1738682058055,37.47047791,212.61,212.52,37.47047791]
[1738682058254,37.47047791,212.64,212.55,37.47047791]
[1738682058458,13.91380853,212.62,212.42,5.41320678]
[1738682058657,37.47047791,212.52,212.44,37.47047791]
[1738682058990,37.47047791,212.45,212.29,4.7104]
[1738682059288,37.47047791,212.46,212.37,37.47047791]
[1738682059475,4.7063,212.48,212.33,37.47047791]
[1738682059476,37.47047791,212.4,212.33,37.47047791]
[1738682059679,37.47047791,212.4,212.31,37.47047791]
[1738682059886,37.47047791,212.44,212.35,37.47047791]
[1738682060500,37.47047791,212.42,212.33,37.47047791]
[1738682061155,4.7063,212.48,212.37,37.47047791]
[1738682061156,37.47047791,212.46,212.37,37.47047791]
[1738682061381,38.34571291,212.48,212.39,37.47047791]
[1738682061589,37.47047791,212.46,212.39,37.47047791]
[1738682061755,13.41184853,212.45,212.36,37.47047791]
[1738682061955,37.47047791,212.39,212.31,37.47047791]
[1738682062152,0.875235,212.51,212.32,1.70636622]
[1738682062391,4.7047,212.55,212.33,1.70611055]
[1738682062692,5.579635,212.57,212.38,0.50196]
[1738682062898,5.579635,212.57,212.38,0.70590853]
[1738682063073,37.47047791,212.48,212.4,37.47047791]
[1738682063258,37.47047791,212.5,212.4,37.47047791]
[1738682063458,37.47047791,212.48,212.4,37.47047791]
[1738682063653,37.47047791,212.46,212.38,37.47047791]
[1738682063877,37.47047791,212.46,212.36,37.47047791]
[1738682064063,37.47047791,212.44,212.34,37.47047791]
[1738682064262,37.47047791,212.46,212.36,37.47047791]
[1738682064666,37.47047791,212.46,212.38,37.47047791]
[1738682064886,37.47047791,212.46,212.36,37.47047791]
[1738682065397,37.47047791,212.46,212.38,37.47047791]
[1738682065704,37.47047791,212.5,212.4,37.47047791]
[1738682066058,37.47047791,212.54,212.46,37.47047791]
[1738682066283,37.47047791,212.54,212.37,0.50196]
[1738682066284,0.875235,212.57,212.48,37.47047791]
[1738682066471,37.47047791,212.56,212.48,37.47047791]
[1738682066992,37.47047791,212.56,212.41,38.176391]
[1738682066993,37.47047791,212.6,212.52,37.47047791]
[1738682067194,37.47047791,212.56,212.48,37.47047791]
[1738682067505,37.47047791,212.52,212.44,37.47047791]
[1738682067716,37.47047791,212.46,212.39,37.47047791]
[1738682067873,37.47047791,212.46,212.36,37.47047791]
[1738682068074,0.875235,212.59,212.37,17.18680052]
[1738682068318,37.47047791,212.49,212.42,37.47047791]
[1738682068487,37.47047791,212.49,212.36,37.47047791]
[1738682068488,37.47047791,212.44,212.36,37.47047791]
[1738682068674,37.47047791,212.42,212.34,37.47047791]
[1738682068880,37.47047791,212.42,212.32,37.47047791]
[1738682069080,0.875235,212.46,212.32,37.47047791]
[1738682069081,42.17867791,212.4,212.32,37.47047791]
[1738682069416,37.47047791,212.4,212.32,37.47047791]
[1738682069888,37.47047791,212.42,212.34,37.47047791]
[1738682070086,37.47047791,212.4,212.32,37.47047791]
[1738682070482,37.47047791,212.42,212.32,37.47047791]
[1738682071085,37.47047791,212.36,212.3,0.03]
[1738682071318,37.47047791,212.34,212.3,0.03]
[1738682071614,37.47047791,212.32,212.3,0.03]
[1738682072281,37.47047791,212.34,212.3,0.03]
[1738682072479,37.47047791,212.38,212.3,37.50047791]
[1738682072815,38.34571291,212.4,212.32,37.47047791]
[1738682072975,37.47047791,212.4,212.32,37.47047791]
[1738682073308,37.47047791,212.38,212.3,37.50047791]
[1738682073515,37.47047791,212.4,212.3,42.21067791]
[1738682073802,37.47047791,212.4,212.32,37.47047791]
[1738682074179,37.47047791,212.38,212.3,0.03]
[1738682074380,37.47047791,212.34,212.3,0.03]
[1738682074580,37.47047791,212.32,212.3,0.03]
[1738682074790,37.47047791,212.34,212.3,0.03]
[1738682074982,37.47047791,212.32,212.3,0.03]
[1738682075392,43.05561291,212.32,212.3,0.03]
[1738682075902,37.47047791,212.32,212.3,0.03]
[1738682076100,38.34571291,212.36,212.3,0.03]
[1738682076300,37.47047791,212.32,212.3,0.03]
[1738682076509,14.28708353,212.31,212.3,0.03]
[1738682076709,14.28708353,212.31,212.15,37.47047791]
[1738682076710,20.0,212.27,212.15,37.47047791]
[1738682077009,37.47047791,212.22,212.14,4.7136]
[1738682077180,37.47047791,212.22,212.15,37.47047791]
[1738682077385,37.47047791,212.24,212.15,37.47047791]
[1738682077907,37.47047791,212.22,212.15,37.47047791]
[1738682078288,37.47047791,212.22,212.13,37.47047791]
[1738682078486,37.47047791,212.15,212.07,42.18587791]
[1738682078709,37.47047791,212.17,212.09,37.47047791]
[1738682078908,37.47047791,212.21,212.13,37.47047791]
[1738682079119,37.47047791,212.23,212.13,37.47047791]
[1738682079295,37.47047791,212.21,212.13,37.47047791]
[1738682079503,37.47047791,212.23,212.16,37.47047791]
[1738682079709,37.47047791,212.23,212.14,37.47047791]
[1738682079905,37.47047791,212.23,212.16,37.47047791]
[1738682080212,37.97243791,212.3,212.18,37.47047791]
[1738682080213,37.47047791,212.27,212.18,37.47047791]
[1738682080416,37.47047791,212.29,212.22,37.47047791]
[1738682080588,37.47047791,212.37,212.28,37.47047791]
[1738682080789,21.08458695,212.38,212.3,37.47047791]
[1738682080990,37.47047791,212.41,212.32,37.47047791]
[1738682081191,37.47047791,212.43,212.36,37.47047791]
[1738682081613,37.47047791,212.43,212.3,37.47047791]
[1738682081614,37.47047791,212.45,212.38,37.47047791]
[1738682082032,37.47047791,212.47,212.38,37.47047791]
[1738682082190,37.47047791,212.47,212.3,40.67869523]
[1738682082191,37.47047791,212.51,212.42,37.47047791]
[1738682082525,42.17617791,212.51,212.42,37.47047791]
[1738682082703,37.47047791,212.49,212.4,37.47047791]
[1738682082903,37.47047791,212.49,212.42,37.47047791]
[1738682083221,0.875235,212.55,212.38,37.47047791]
[1738682083222,37.47047791,212.46,212.38,37.47047791]
[1738682083416,37.47047791,212.42,212.34,37.47047791]
[1738682083718,37.47047791,212.44,212.36,37.47047791]
[1738682083899,37.47047791,212.46,212.36,37.47047791]
[1738682084419,37.47047791,212.44,212.34,37.47047791]
[1738682084595,37.47047791,212.42,212.34,37.47047791]
[1738682084939,37.47047791,212.44,212.36,37.47047791]
[1738682085094,37.47047791,212.42,212.25,0.70628957]
[1738682085294,37.47047791,212.36,212.27,37.47047791]
[1738682085603,37.47047791,212.36,212.23,42.18227791]
[1738682085604,37.47047791,212.32,212.23,42.18227791]
[1738682085822,37.47047791,212.36,212.27,37.47047791]
[1738682086022,37.47047791,212.38,212.31,37.47047791]
[1738682086220,37.47047791,212.42,212.35,37.47047791]
[1738682086399,5.582935,212.42,212.33,37.47047791]
[1738682086601,37.47047791,212.38,212.28,37.47047791]
[1738682086924,37.47047791,212.38,212.3,37.47047791]
[1738682087634,37.47047791,212.36,212.23,4.7118]
[1738682087802,37.47047791,212.41,212.23,4.7118]
[1738682087803,37.47047791,212.38,212.3,37.47047791]
[1738682088199,37.47047791,212.33,212.24,37.47047791]
[1738682088426,37.47047791,212.31,212.22,37.47047791]
[1738682088637,37.47047791,212.31,212.22,42.18247791]
[1738682088815,37.47047791,212.37,212.28,37.47047791]
[1738682088999,42.17937791,212.37,212.28,37.47047791]
[1738682089200,37.47047791,212.31,212.22,42.18247791]
[1738682089397,37.47047791,212.31,212.1,1.0]
[1738682089398,37.47047791,212.23,212.15,37.47047791]
[1738682089625,37.47047791,212.21,212.13,37.47047791]
[1738682090109,37.47047791,212.19,212.11,37.47047791]
[1738682090509,42.18327791,212.19,212.11,42.18497791]
[1738682090705,42.18327791,212.19,212.11,37.47047791]
[1738682090921,37.47047791,212.23,212.13,37.47047791]
[1738682091234,37.47047791,212.31,212.21,37.47047791]
[1738682091441,37.47047791,212.35,212.26,37.47047791]
[1738682091601,37.47047791,212.33,212.24,37.47047791]
[1738682091932,0.875235,212.32,212.2,37.47047791]
[1738682092108,37.47047791,212.27,212.18,37.47047791]
[1738682092621,37.47047791,212.29,212.2,37.47047791]
[1738682092823,37.47047791,212.25,212.16,42.18367791]
[1738682093030,37.47047791,212.25,212.17,4.7131]
[1738682093324,33.41184853,212.33,212.18,37.47047791]
[1738682093508,37.47047791,212.29,212.2,37.47047791]
[1738682093828,37.47047791,212.27,212.18,37.47047791]
[1738682094014,37.47047791,212.27,212.2,37.47047791]
[1738682094200,37.47047791,212.29,212.2,37.47047791]
[1738682094597,37.47047791,212.29,212.21,4.7123]
[1738682094796,42.18067791,212.31,212.22,37.47047791]
[1738682095022,37.47047791,212.29,212.22,37.47047791]
[1738682095225,37.47047791,212.29,212.2,37.47047791]
[1738682095404,37.47047791,212.29,212.18,37.50047791]
[1738682095405,37.47047791,212.27,212.18,37.50047791]
[1738682095737,37.47047791,212.27,212.18,42.21337791]
[1738682095903,37.47047791,212.27,212.2,37.47047791]
[1738682096103,37.47047791,212.31,212.22,37.47047791]
[1738682096511,37.47047791,212.29,212.2,42.18277791]
[1738682096803,37.47047791,212.33,212.24,37.47047791]
[1738682097031,37.47047791,212.31,212.22,37.47047791]
[1738682097218,37.47047791,212.27,212.18,37.50047791]
[1738682097422,37.47047791,212.23,212.18,0.03]
[1738682097824,37.47047791,212.27,212.19,4.7127]
[1738682098134,0.063,212.36,212.19,4.7127]
[1738682098135,37.47047791,212.33,212.25,37.47047791]
[1738682098337,37.47047791,212.33,212.19,43.88993873]
[1738682098338,0.063,212.36,212.3,37.47047791]
[1738682098631,0.063,212.36,212.32,37.47047791]
[1738682098836,0.063,212.36,212.34,37.47047791]
[1738682099406,37.47047791,212.35,212.25,37.47047791]
[1738682099609,37.47047791,212.32,212.23,37.47047791]
[1738682099843,0.938235,212.36,212.17,0.70657248]
[1738682099844,37.47047791,212.3,212.21,37.47047791]
[1738682100344,37.47047791,212.26,212.19,37.47047791]
[1738682100537,37.47047791,212.28,212.19,37.47047791]
[1738682100759,0.063,212.36,212.27,37.47047791]
[1738682100950,0.063,212.36,212.32,37.47047791]
[1738682101149,4.772,212.36,212.28,37.47047791]
[1738682101440,37.47047791,212.29,212.2,37.47047791]
[1738682101741,37.53347791,212.36,212.28,37.47047791]
[1738682102048,37.47047791,212.32,212.24,37.47047791]
[1738682102217,4.772,212.36,212.2,37.47047791]
[1738682102218,37.47047791,212.29,212.2,37.47047791]
[1738682102416,37.47047791,212.27,212.18,37.50047791]
[1738682102744,16.5444,212.36,212.22,37.47047791]
[1738682102745,37.47047791,212.31,212.22,37.47047791]
[1738682103041,0.938235,212.36,212.3,37.47047791]
[1738682103042,0.063,212.36,212.3,37.47047791]
[1738682103218,0.063,212.36,212.34,37.47047791]
[1738682103615,0.063,212.36,212.3,37.47047791]
[1738682103837,0.063,212.36,212.28,37.47047791]
[1738682104013,0.063,212.36,212.32,37.47047791]
[1738682104220,0.063,212.36,212.34,37.47047791]
[1738682104732,0.063,212.36,212.34,42.17987791]
[1738682104926,42.17647791,212.5,212.35,0.50196]
[1738682105124,37.47047791,212.54,212.44,37.47047791]
[1738682105434,4.7038,212.59,212.5,37.47047791]
[1738682105614,42.17377791,212.62,212.54,37.47047791]
[1738682105810,0.875235,212.64,212.56,37.47047791]
[1738682105811,37.47047791,212.64,212.56,37.47047791]
[1738682106035,42.17287791,212.66,212.58,37.47047791]
[1738682106418,1.17775799,212.72,212.58,37.47047791]
[1738682106419,58.52612199,212.68,212.58,37.47047791]
[1738682106622,4.7009,212.73,212.66,37.47047791]
[1738682106822,37.47047791,212.72,212.64,37.47047791]
[1738682107126,37.47047791,212.68,212.6,37.47047791]
[1738682107315,37.47047791,212.7,212.62,37.47047791]
[1738682107517,7.17789604,212.74,212.68,37.47047791]
[1738682107944,7.17789604,212.74,212.72,37.47047791]
[1738682108117,0.063,212.76,212.72,37.47047791]
[1738682108443,0.063,212.76,212.74,37.47047791]
[1738682109121,0.063,212.76,212.75,0.50196]
[1738682109643,0.063,212.76,212.74,80.3461371]
[1738682109827,0.063,212.76,212.74,79.64135582]
[1738682110032,0.063,212.76,212.75,1.20670153]
[1738682110232,0.063,212.76,212.74,74.94095582]
[1738682110423,0.063,212.76,212.75,0.70467678]
[1738682110620,37.47047791,212.97,212.78,2.0]
[1738682110821,0.063,212.98,212.93,37.47047791]
[1738682111041,0.063,212.98,212.95,37.47047791]
[1738682111349,0.063,212.98,212.93,37.47047791]
[1738682111525,0.063,212.98,212.95,37.47047791]
[1738682112368,0.063,212.98,212.97,37.47047791]
[1738682112533,0.063,212.98,212.89,1.2062109]
[1738682112534,0.063,212.98,212.95,37.47047791]
[1738682112980,0.063,212.98,212.93,37.47047791]
[1738682113142,0.063,212.98,212.97,37.47047791]
[1738682113548,0.063,212.98,212.93,37.47047791]
[1738682113754,0.063,212.98,212.95,37.47047791]
[1738682113959,0.063,212.98,212.97,37.47047791]
[1738682114173,0.063,212.98,212.93,37.47047791]
[1738682114467,37.53347791,212.98,212.91,37.47047791]
[1738682114849,37.47047791,212.96,212.89,37.47047791]
[1738682115151,4.6954,212.97,212.91,37.47047791]
[1738682115355,0.063,212.98,212.93,37.47047791]
[1738682115559,4.7583,212.98,212.93,37.47047791]
[1738682115782,42.22877791,212.98,212.89,37.47047791]
[1738682116064,0.063,212.98,212.95,37.47047791]
[1738682116380,0.063,212.98,212.97,37.47047791]
[1738682116744,0.063,212.98,212.97,42.29136791]
[1738682117248,0.063,212.98,212.96,37.47047791]
[1738682117462,0.063,212.98,212.92,0.70394227]
[1738682117463,0.063,212.98,212.97,37.47047791]
[1738682118041,0.063,212.98,212.97,52.08826104]
[1738682118463,4.6918,213.14,213.02,0.37647]
[1738682118669,4.6913,213.16,213.11,37.47047791]
[1738682118953,4.6906,213.19,213.13,37.47047791]
[1738682119139,4.6897,213.23,213.15,37.47047791]
[1738682119341,4.6897,213.23,213.17,37.47047791]
[1738682119758,4.6897,213.23,213.09,0.82900345]
[1738682119759,37.47047791,213.22,213.13,37.47047791]
[1738682119958,37.47047791,213.26,213.19,37.47047791]
[1738682120162,37.47047791,213.26,213.07,42.16357791]
[1738682120163,37.47047791,213.3,213.23,37.47047791]
[1738682120476,4.7175,213.34,213.28,37.47047791]
[1738682120968,4.7175,213.34,213.24,37.47047791]
[1738682120969,37.47047791,213.3,213.24,37.47047791]
[1738682121153,37.47047791,213.3,213.22,37.47047791]
[1738682121573,37.47047791,213.28,213.2,37.47047791]
[1738682122089,37.47047791,213.26,213.18,37.47047791]
[1738682122373,37.47047791,213.24,213.18,37.47047791]
[1738682122547,37.47047791,213.24,213.16,37.47047791]
[1738682122878,37.47047791,213.19,213.11,37.47047791]
[1738682123377,37.47047791,213.2,213.13,37.47047791]
[1738682123574,4.6897,213.23,213.07,57.47047791]
[1738682123575,4.6897,213.23,213.18,37.47047791]
[1738682123765,37.47047791,213.21,213.14,37.47047791]
[1738682123947,37.47047791,213.16,213.08,37.47047791]
[1738682124472,37.47047791,213.11,213.03,37.47047791]
[1738682124651,37.47047791,213.09,213.02,37.47047791]
[1738682124847,42.16347791,213.08,213.01,37.47047791]
[1738682125050,37.47047791,213.06,212.91,4.6966]
[1738682125357,4.693,213.08,212.94,20.0]
[1738682125567,13.41184853,213.07,212.91,4.6966]
[1738682125763,17.300835,213.08,212.92,1.70426393]
[1738682125764,4.693,213.08,212.92,1.70426393]
[1738682125952,4.693,213.08,212.94,0.12549]
[1738682126277,42.16347791,213.08,213.01,37.47047791]
[1738682126580,37.47047791,213.03,212.93,37.47047791]
[1738682126871,17.426325,213.08,212.88,1.0]
[1738682126872,37.47047791,213.08,212.88,1.0]
[1738682127045,0.875235,213.07,212.89,5.4014079]
[1738682127251,0.875235,213.12,212.92,0.12549]
[1738682127448,20.0,213.08,212.92,0.82964244]
[1738682127656,20.0,213.08,212.93,0.70419535]
[1738682127853,20.0,213.08,212.92,20.0]
[1738682127854,14.66355353,213.07,212.92,20.0]
[1738682128176,37.47047791,212.95,212.88,37.47047791]
[1738682128349,37.47047791,212.95,212.87,37.47047791]
[1738682128545,37.47047791,212.96,212.89,37.47047791]
[1738682128860,37.47047791,212.96,212.88,37.47047791]
[1738682129052,16.4311,213.01,212.82,0.25098]
[1738682129053,37.47047791,212.98,212.9,37.47047791]
[1738682129374,37.47047791,213.0,212.92,37.47047791]
[1738682129675,37.47047791,213.04,212.97,37.47047791]
[1738682129859,37.47047791,213.08,213.01,37.47047791]
[1738682130060,37.47047791,213.06,212.99,37.47047791]
[1738682130251,37.47047791,213.06,212.91,0.70407395]
[1738682130252,13.41184853,213.06,212.91,0.70421087]
[1738682130446,4.6928,213.09,212.92,0.7042362]
[1738682130657,0.875235,213.14,212.95,20.50196]
[1738682130859,4.6919,213.13,212.93,0.70406062]
[1738682131061,20.0,213.05,212.91,4.6966]
[1738682131474,0.063,213.07,213.0,37.47047791]
[1738682131663,0.063,213.07,213.04,37.47047791]
[1738682132079,0.063,213.07,213.06,37.47047791]
[1738682132668,0.063,213.07,213.04,37.47047791]
[1738682133063,0.063,213.07,213.06,37.47047791]
[1738682133663,0.0001,213.07,213.06,37.97243791]
[1738682133863,0.0001,213.07,213.06,89.5583881]
[1738682134065,0.0001,213.07,213.04,37.47047791]
[1738682134264,0.0001,213.07,213.02,37.47047791]
[1738682134563,0.0001,213.07,213.04,37.47047791]
[1738682135594,0.0001,213.07,213.06,75.44291582]
[1738682135795,0.0001,213.07,213.06,74.94095582]
[1738682135958,0.0001,213.07,213.06,37.47047791]
[1738682136163,0.0001,213.07,213.01,37.47047791]
[1738682136380,0.0001,213.07,213.03,37.47047791]
[1738682136566,0.0001,213.07,213.06,0.25098]
[1738682136760,0.0001,213.07,213.06,15.61750269]
[1738682137085,4.6896,213.24,213.09,20.0]
[1738682137290,50.88232644,213.23,213.15,37.47047791]
[1738682137460,4.6896,213.24,213.17,37.47047791]
[1738682137660,37.47047791,213.23,213.15,37.47047791]
[1738682138086,4.6896,213.24,213.17,37.47047791]
[1738682138258,20.9999861,213.25,213.17,37.47047791]
[1738682138465,20.9999861,213.25,213.12,0.12549]
[1738682138466,4.6886,213.28,213.21,37.47047791]
[1738682138660,4.6886,213.28,213.11,17.4234]
[1738682138661,0.063,213.29,213.25,37.47047791]
[1738682138881,0.063,213.29,213.15,15.11526364]
[1738682138882,42.22197791,213.29,213.21,37.47047791]
[1738682139096,20.063,213.29,213.21,37.47047791]
[1738682139266,4.7514,213.29,213.23,37.47047791]
[1738682139472,4.6888,213.27,213.21,37.47047791]
[1738682140189,37.47047791,213.22,213.13,37.47047791]
[1738682140365,37.47047791,213.26,213.19,37.47047791]
[1738682140563,4.7516,213.29,213.23,37.47047791]
[1738682140962,4.7516,213.29,213.21,37.47047791]
[1738682141162,4.7515,213.29,213.21,37.47047791]
[1738682141366,0.063,213.29,213.23,37.47047791]
[1738682141897,0.063,213.29,213.19,37.47047791]
[1738682141898,37.47047791,213.26,213.19,37.47047791]
[1738682142312,37.47047791,213.26,213.17,37.47047791]
[1738682142503,0.063,213.29,213.23,37.47047791]
[1738682143002,0.063,213.29,213.15,13.41184853]
[1738682143003,37.47047791,213.27,213.19,37.47047791]
[1738682143334,37.47047791,213.27,213.09,1.0]
[1738682143335,37.47047791,213.23,213.08,4.693]
[1738682143485,37.47047791,213.23,213.06,37.47047791]
[1738682143486,4.6904,213.2,213.13,37.47047791]
[1738682143807,37.47047791,213.23,213.15,37.47047791]
[1738682144170,37.47047791,213.23,213.13,4.6919]
[1738682144171,37.47047791,213.18,213.1,37.47047791]
[1738682144595,37.47047791,213.2,213.12,37.47047791]
[1738682145174,37.47047791,213.16,213.08,37.47047791]
[1738682145375,37.47047791,213.16,213.04,37.47047791]
[1738682145376,37.47047791,213.12,213.04,37.47047791]
[1738682145576,37.47047791,213.1,213.02,37.47047791]
[1738682145777,37.47047791,213.1,213.0,37.47047791]
[1738682146006,13.41184853,213.15,213.0,37.47047791]
[1738682146007,37.47047791,213.12,213.02,37.47047791]
[1738682146187,1.377195,213.17,213.0,0.70406069]
[1738682146188,37.47047791,213.14,213.04,37.47047791]
[1738682146587,37.47047791,213.14,213.06,37.47047791]
[1738682147103,37.47047791,213.16,213.08,37.47047791]
[1738682147401,37.47047791,213.11,213.02,37.47047791]
[1738682147600,37.47047791,213.09,212.99,42.16537791]
[1738682147800,37.47047791,213.09,213.01,37.47047791]
[1738682148678,37.47047791,213.05,212.97,37.47047791]
[1738682149004,37.47047791,213.09,212.99,37.47047791]
[1738682149213,20.25098,213.03,212.96,0.03]
[1738682149387,37.47047791,212.97,212.96,0.03]
[1738682149798,50.88232644,212.97,212.96,0.03]
[1738682150001,37.47047791,212.97,212.96,0.03]
[1738682150201,51.13330644,212.97,212.96,0.03]
[1738682150399,51.38428644,212.97,212.96,0.03]
[1738682150600,37.47047791,212.85,212.77,4.6999]
[1738682150819,37.47047791,212.83,212.76,4.73]
[1738682151133,37.47047791,212.83,212.77,20.0]
[1738682151326,37.47047791,212.83,212.76,0.03]
[1738682151527,37.47047791,212.77,212.76,0.03]
[1738682151928,37.72145791,212.85,212.76,0.03]
[1738682151929,37.47047791,212.79,212.76,0.03]
[1738682152105,37.47047791,212.77,212.76,0.03]
[1738682152505,51.38428644,212.77,212.76,0.03]
[1738682153237,5.07767,212.71,212.67,4.676]
[1738682153414,37.47047791,212.68,212.67,4.676]
[1738682153615,37.47047791,212.7,212.62,37.47047791]
[1738682154016,13.41184853,212.72,212.52,37.47047791]
[1738682154017,50.88232644,212.72,212.52,37.47047791]
[1738682154215,1.0,212.68,212.64,37.47047791]
[1738682154423,13.41184853,212.64,212.63,37.47047791]
[1738682154734,13.41184853,212.67,212.63,21.75818804]
[1738682154735,1.0,212.67,212.63,21.75818804]
[1738682154912,1.0,212.7,212.54,20.0]
[1738682155112,1.0,212.7,212.69,37.47047791]
[1738682155433,1.0,212.62,212.55,4.7047]
[1738682155638,13.41184853,212.61,212.57,37.47047791]
[1738682156007,1.0,212.59,212.57,37.47047791]
[1738682156204,13.41184853,212.61,212.57,37.47047791]
[1738682156407,1.0,212.63,212.59,37.47047791]
[1738682156630,1.0,212.65,212.61,37.47047791]
[1738682156801,1.0,212.67,212.63,37.47047791]
[1738682157002,1.0,212.69,212.65,37.47047791]
[1738682157204,1.0,212.72,212.68,4.7018]
[1738682157414,1.0,212.73,212.71,37.47047791]
[1738682157817,14.41184853,212.7,212.69,37.47047791]
[1738682158027,1.0,212.8,212.72,20.0]
[1738682158241,1.0,212.82,212.79,37.47047791]
[1738682158537,1.0,212.8,212.79,37.47047791]
[1738682158742,14.41184853,212.8,212.79,37.47047791]
[1738682158907,1.0,212.82,212.79,37.47047791]
[1738682159109,1.0,212.83,212.81,37.47047791]
[1738682159828,13.41184853,212.82,212.81,37.47047791]
[1738682160229,1.0,212.86,212.84,20.0]
[1738682160414,1.0,212.86,212.85,37.47047791]
[1738682160738,1.0,212.91,212.85,37.47047791]
[1738682160903,37.47047791,212.97,212.85,37.47047791]
[1738682160904,1.0,212.94,212.9,37.47047791]
[1738682161108,42.16497791,213.02,212.87,37.47047791]
[1738682161109,1.0,212.9,212.87,37.47047791]
[1738682161334,1.0,212.94,212.89,37.47047791]
[1738682161633,1.0,212.94,212.93,37.47047791]
[1738682161833,1.0,213.02,212.96,20.0]
[1738682162008,1.063,213.1,212.97,0.50196]
[1738682162212,2.063,213.1,213.07,37.47047791]
[1738682162419,1.0,213.08,213.07,37.47047791]
[1738682162727,0.063,213.1,213.07,37.47047791]
[1738682162943,1.063,213.1,213.07,37.47047791]
[1738682163117,1.063,213.1,213.08,7.18003916]
[1738682163432,0.063,213.1,213.09,37.47047791]